bitfinex-derivatives/quotes_BTCF0:USTF0_20250919
["timestamp","ask_amount","ask_price","bid_price","bid_amount"]
[1758293340092,1.4270529,115950.0,115940.0,0.02979]
[1758293340292,1.4270129,115950.0,115940.0,0.02979]
[1758293340506,0.91002166,115950.0,115940.0,0.02979]
[1758293340705,0.91002166,115950.0,115940.0,0.00704]
[1758293340906,1.84906166,115950.0,115940.0,0.00704]
[1758293341703,0.91002166,115950.0,115940.0,0.00704]
[1758293341903,1.4271729,115950.0,115940.0,0.00704]
[1758293342107,1.84898166,115950.0,115940.0,0.00704]
[1758293343503,0.91002166,115950.0,115940.0,0.00704]
[1758293343708,1.84878166,115950.0,115940.0,0.00704]
[1758293344008,1.84870166,115950.0,115940.0,0.02979]
[1758293344208,1.4268929,115950.0,115940.0,0.02956]
[1758293344709,1.84870166,115950.0,115940.0,0.02956]
[1758293344909,1.4269329,115950.0,115940.0,0.02956]
[1758293345207,0.4882129,115950.0,115940.0,0.02956]
[1758293345502,1.48822166,115950.0,115940.0,0.02956]
[1758293345813,1.84902166,115950.0,115940.0,0.02956]
[1758293346108,1.48822166,115950.0,115940.0,0.02956]
[1758293346310,1.48822166,115950.0,115940.0,0.39036]
[1758293346507,1.0664529,115950.0,115940.0,0.40418]
[1758293346709,1.0529329,115950.0,115940.0,0.40418]
[1758293346901,1.0531729,115950.0,115940.0,1.07598876]
[1758293347309,1.0531729,115950.0,115940.0,1.16219926]
[1758293347511,1.0531729,115950.0,115940.0,0.7403905]
[1758293347709,1.0531729,115950.0,115940.0,0.65418]
[1758293348112,1.0531729,115950.0,115940.0,0.7403905]
[1758293348113,1.0539329,115950.0,115940.0,0.7403905]
[1758293348812,1.0539731,115950.0,115940.0,1.16219926]
[1758293349220,1.0670331,115950.0,115940.0,0.65418]
[1758293350407,1.05301774,115950.0,115940.0,0.64036]
[1758293350608,1.41381774,115950.0,115940.0,0.27956]
[1758293350807,1.41381774,115950.0,115940.0,0.40172315]
[1758293351209,1.05301774,115950.0,115940.0,0.40172315]
[1758293351715,1.41381774,115950.0,115940.0,0.40172315]
[1758293352012,1.41381774,115950.0,115940.0,0.29338]
[1758293352013,1.05301774,115950.0,115940.0,0.29338]
[1758293352710,1.03995774,115950.0,115940.0,0.7403906]
[1758293352915,1.03995774,115950.0,115940.0,0.65418]
[1758293353110,1.05062774,115950.0,115940.0,0.29338]
[1758293353811,1.38808859,115950.0,115940.0,0.72543923]
[1758293354008,1.41142774,115950.0,115940.0,0.13797838]
[1758293354204,1.38808859,115950.0,115940.0,0.47543923]
[1758293354408,1.38808859,115950.0,115940.0,0.13797838]
[1758293354608,1.38808859,115950.0,115940.0,0.47543923]
[1758293354812,1.74888859,115950.0,115940.0,0.47543923]
[1758293355016,1.38808859,115950.0,115940.0,0.47543923]
[1758293355211,1.74888859,115950.0,115940.0,0.13797838]
[1758293355413,1.38808859,115950.0,115940.0,0.47543923]
[1758293355811,1.38808859,115950.0,115940.0,0.13797838]
[1758293356016,1.38184859,115950.0,115940.0,0.13797838]
[1758293356316,1.38184859,115950.0,115940.0,0.47543923]
[1758293356512,1.38184859,115950.0,115940.0,0.13797838]
[1758293356717,1.74264859,115950.0,115940.0,0.47543923]
[1758293357514,1.40518774,115950.0,115940.0,0.47543923]
[1758293357714,1.74264859,115950.0,115940.0,0.47543923]
[1758293357914,1.40518774,115950.0,115940.0,0.47543923]
[1758293358115,1.74264859,115950.0,115940.0,0.47543923]
[1758293358620,1.40518774,115950.0,115940.0,0.13797838]
[1758293358917,1.04438774,115950.0,115940.0,0.47543923]
[1758293359223,1.38104859,115950.0,115940.0,0.47543923]
[1758293359615,1.74184859,115950.0,115940.0,0.11545838]
[1758293359814,1.74184859,115950.0,115940.0,0.00704]
[1758293361120,1.98792859,115950.0,115940.0,0.00704]
[1758293361814,1.65046774,115950.0,115940.0,0.00704]
[1758293362018,1.98792859,115950.0,115940.0,0.00704]
[1758293362609,2.32538944,115950.0,115940.0,0.00704]
[1758293365216,2.32382944,115950.0,115940.0,0.00704]
[1758293365810,1.64890774,115950.0,115940.0,0.00704]
[1758293366021,2.32382944,115950.0,115940.0,0.00704]
[1758293366826,1.43774817,115950.0,115940.0,0.00704]
[1758293367126,2.36446817,115950.0,115940.0,0.00704]
[1758293367317,2.32186944,115950.0,115940.0,0.00704]
[1758293367525,2.32142944,115950.0,115940.0,0.00704]
[1758293368020,1.39546944,115950.0,115940.0,0.00704]
[1758293368322,1.64650774,115950.0,115940.0,0.00704]
[1758293368528,2.32142944,115950.0,115940.0,0.00704]
[1758293368824,1.64650774,115950.0,115940.0,0.00704]
[1758293369025,2.32142944,115950.0,115940.0,0.00704]
[1758293369534,0.72054774,115950.0,115940.0,0.00704]
[1758293369819,2.32086944,115950.0,115940.0,0.00704]
[1758293371319,1.39546944,115950.0,115940.0,0.00704]
[1758293371527,2.31770944,115950.0,115940.0,0.00704]
[1758293373317,1.39546944,115950.0,115940.0,0.00704]
[1758293373518,2.31590944,115950.0,115940.0,0.00704]
[1758293374021,1.39546944,115950.0,115940.0,0.00704]
[1758293374217,2.31514944,115950.0,115940.0,0.00704]
[1758293374412,2.65261029,115950.0,115930.0,0.02543319]
[1758293374619,3.31153305,115940.0,115930.0,9e-08]
[1758293374921,3.2197505,115940.0,115930.0,9e-08]
[1758293375123,4.48213305,115940.0,115930.0,9e-08]
[1758293376917,4.48313305,115940.0,115930.0,9e-08]
[1758293377123,3.56253305,115940.0,115930.0,9e-08]
[1758293377322,0.1200029,115910.0,115900.0,0.10851838]
[1758293377516,2.77250545,115910.0,115900.0,0.10841838]
[1758293377716,0.1216605,115900.0,115890.0,0.04401]
[1758293377917,1.49484305,115900.0,115890.0,0.04401]
[1758293378222,0.1093553,115880.0,115870.0,0.30962152]
[1758293378422,2.062837,115880.0,115870.0,0.21421314]
[1758293378729,0.1093627,115870.0,115860.0,0.14835947]
[1758293378923,0.1093627,115870.0,115860.0,0.18702515]
[1758293379117,0.44682355,115870.0,115860.0,0.18702515]
[1758293379726,0.44682355,115870.0,115860.0,0.07860677]
[1758293380227,0.44782355,115870.0,115860.0,0.07860677]
[1758293381236,0.45282355,115870.0,115860.0,0.07860677]
[1758293381532,1.36974355,115870.0,115860.0,0.41606762]
[1758293381729,0.45282355,115870.0,115860.0,0.86313782]
[1758293381933,1.36806355,115870.0,115860.0,1.11313782]
[1758293382231,0.45282355,115870.0,115860.0,1.11313782]
[1758293382427,0.006,115870.0,115860.0,1.45059867]
[1758293382622,0.006,115870.0,115860.0,1.80813131]
[1758293382824,0.00475653,115870.0,115860.0,1.64935961]
[1758293383328,0.00475653,115870.0,115860.0,1.77906641]
[1758293383528,0.01777599,115900.0,115890.0,0.1207779]
[1758293383723,0.01777599,115900.0,115890.0,0.45823875]
[1758293384027,0.01777599,115900.0,115890.0,0.28453]
[1758293384028,0.12711639,115900.0,115890.0,0.28453]
[1758293384230,0.91003541,115900.0,115890.0,0.28453]
[1758293384429,0.91003541,115900.0,115890.0,0.02152]
[1758293384430,0.92364541,115900.0,115890.0,0.02152]
[1758293384624,0.48791639,115900.0,115890.0,0.03453]
[1758293384819,0.92364541,115900.0,115890.0,0.02152]
[1758293385028,0.0862479,115890.0,115880.0,0.01301]
[1758293385334,1.3828679,115890.0,115880.0,0.03453]
[1758293385524,1.3964779,115890.0,115880.0,0.03453]
[1758293385926,0.4837579,115890.0,115880.0,0.03453]
[1758293386126,1.3815879,115890.0,115880.0,0.1207854]
[1758293386321,1.40436119,115900.0,115890.0,0.01301]
[1758293386526,1.40336119,115900.0,115890.0,0.03453]
[1758293386731,1.40303649,115900.0,115890.0,0.370778]
[1758293387431,0.48791649,115900.0,115890.0,0.370778]
[1758293387735,1.39871649,115900.0,115890.0,0.370778]
[1758293388325,1.40271649,115900.0,115890.0,0.374778]
[1758293389135,1.40271649,115900.0,115890.0,0.374738]
[1758293389336,1.40371649,115900.0,115890.0,0.375738]
[1758293389633,0.4751405,115900.0,115890.0,0.375738]
[1758293389935,1.3832205,115900.0,115890.0,0.79785702]
[1758293390137,0.4751405,115900.0,115890.0,0.375738]
[1758293390329,1.3829405,115900.0,115890.0,0.375738]
[1758293391030,0.4751405,115900.0,115890.0,0.375738]
[1758293391334,0.4520405,115900.0,115890.0,0.79785702]
[1758293391530,1.3592405,115900.0,115890.0,0.79785702]
[1758293391934,1.3823405,115900.0,115890.0,0.79785702]
[1758293392730,1.3823405,115900.0,115890.0,0.375738]
[1758293393230,0.3889,115900.0,115890.0,0.375738]
[1758293393431,0.3889,115900.0,115890.0,0.79785702]
[1758293393432,0.005,115900.0,115890.0,0.79785702]
[1758293393631,0.005,115900.0,115890.0,1.15865702]
[1758293395243,0.005,115900.0,115890.0,1.2670754]
[1758293395834,0.02825,115900.0,115890.0,0.84495638]
[1758293396036,0.005,115900.0,115890.0,0.84495638]
[1758293396240,0.005,115900.0,115890.0,1.26422951]
[1758293397449,1.38947274,115930.0,115920.0,0.1216254]
[1758293397640,1.38947274,115930.0,115920.0,0.54089853]
[1758293397641,0.3608,115930.0,115920.0,0.54089853]
[1758293398046,0.38185,115930.0,115920.0,0.54089853]
[1758293398248,0.02105,115930.0,115920.0,0.1216254]
[1758293398550,1.3712606,115940.0,115930.0,0.121618]
[1758293398740,1.3712606,115940.0,115930.0,0.19125968]
[1758293399150,1.3713006,115940.0,115930.0,0.19125968]
[1758293399349,0.4680606,115940.0,115930.0,0.23480774]
[1758293399749,0.4690606,115940.0,115930.0,0.14958974]
[1758293400151,0.4690606,115940.0,115930.0,0.23780774]
[1758293400152,0.4740606,115940.0,115930.0,0.23780774]
[1758293400353,0.4740606,115940.0,115930.0,0.15158974]
[1758293400646,1.3757406,115940.0,115930.0,0.15158974]
[1758293401155,1.26848,115940.0,115930.0,0.65708087]
[1758293401447,0.006,115940.0,115930.0,1.01788087]
[1758293401656,0.006,115940.0,115930.0,2.16820087]
[1758293401952,0.006,115940.0,115930.0,1.26788087]
[1758293402150,0.006,115940.0,115930.0,2.16800087]
[1758293402445,0.006,115940.0,115930.0,2.16804087]
[1758293403051,0.006,115940.0,115930.0,0.84860774]
[1758293403253,0.0922105,115940.0,115930.0,2.16712087]
[1758293403456,0.006,115940.0,115930.0,1.26788087]
[1758293403655,0.006,115940.0,115930.0,2.16708087]
[1758293403856,0.006,115940.0,115930.0,1.26788087]
[1758293404149,0.0056,115940.0,115930.0,2.16680087]
[1758293404355,0.004,115940.0,115930.0,2.16680087]
[1758293405249,0.004,115940.0,115930.0,1.26788087]
[1758293405549,0.3648,115940.0,115930.0,1.38528774]
[1758293405755,0.004,115940.0,115930.0,1.72275938]
[1758293406053,0.0902105,115940.0,115930.0,1.72275938]
[1758293406559,0.004,115940.0,115930.0,1.72255938]
[1758293407049,0.0902105,115940.0,115930.0,1.72199938]
[1758293407250,0.004,115940.0,115930.0,2.08279938]
[1758293407665,0.004,115940.0,115930.0,0.84860774]
[1758293407857,0.004,115940.0,115930.0,2.08251938]
[1758293409758,0.004,115940.0,115930.0,1.74696774]
[1758293409958,0.004,115940.0,115930.0,1.72363938]
[1758293410158,0.69873214,115940.0,115930.0,0.15158974]
[1758293410352,1.05953214,115940.0,115930.0,0.15158974]
[1758293410754,0.7220605,115940.0,115930.0,0.15158974]
[1758293410955,1.05953214,115940.0,115930.0,0.15158974]
[1758293411750,0.7220605,115940.0,115930.0,0.15158974]
[1758293411967,1.05953214,115940.0,115930.0,0.15158974]
[1758293412457,0.7220605,115940.0,115930.0,0.15158974]
[1758293416865,1.07314214,115940.0,115930.0,0.09495168]
[1758293417162,1.07314214,115940.0,115930.0,0.07264168]
[1758293417355,1.07314214,115940.0,115930.0,0.09495168]
[1758293417750,1.07314214,115940.0,115930.0,0.07264168]
[1758293418165,1.07314214,115940.0,115930.0,0.09495168]
[1758293418349,1.07314214,115940.0,115930.0,0.07264168]
[1758293418765,1.96638214,115940.0,115930.0,0.09495168]
[1758293418950,1.96638214,115940.0,115930.0,0.07264168]
[1758293419760,1.6289105,115940.0,115930.0,0.13852039]
[1758293419962,1.96638214,115940.0,115930.0,0.11621039]
[1758293420156,1.6289105,115940.0,115930.0,0.11621039]
[1758293420365,1.96570214,115940.0,115930.0,0.11621039]
[1758293421470,1.07314214,115940.0,115930.0,0.11621039]
[1758293421670,1.96502214,115940.0,115930.0,0.07264168]
[1758293422456,1.96398214,115940.0,115930.0,0.07264168]
[1758293422665,1.07314214,115940.0,115930.0,0.07264168]
[1758293422868,1.96386214,115940.0,115930.0,0.07264168]
[1758293423271,1.07314214,115940.0,115930.0,0.07264168]
[1758293423475,1.96346214,115940.0,115930.0,0.09495168]
[1758293423975,0.7356705,115940.0,115930.0,0.09495168]
[1758293424276,1.96294214,115940.0,115930.0,0.13840837]
[1758293424469,1.96294214,115940.0,115930.0,0.04645669]
[1758293424870,1.07314214,115940.0,115930.0,0.04645669]
[1758293425072,1.96262214,115940.0,115930.0,0.06758669]
[1758293425379,1.07314214,115940.0,115930.0,0.06758669]
[1758293425578,1.96262214,115940.0,115930.0,0.06758669]
[1758293425877,1.6251505,115940.0,115930.0,0.04645669]
[1758293426080,1.96262214,115940.0,115930.0,0.11430508]
[1758293426279,1.96262214,115940.0,115930.0,0.003]
[1758293426480,1.96262214,115940.0,115930.0,0.04703899]
[1758293426779,1.96210214,115940.0,115930.0,0.06816899]
[1758293427185,1.07314214,115940.0,115930.0,0.06816899]
[1758293427475,0.64946,115940.0,115930.0,0.16728679]
[1758293427683,0.02505,115940.0,115930.0,0.50475843]
[1758293427876,0.004,115940.0,115930.0,1.11555843]
[1758293428268,0.004,115940.0,115930.0,1.22397681]
[1758293429483,0.0902104,115940.0,115930.0,1.22397681]
[1758293429673,0.0902104,115940.0,115930.0,0.86317681]
[1758293430177,0.1131004,115940.0,115930.0,0.93104589]
[1758293430378,0.1131004,115940.0,115930.0,0.59357425]
[1758293430682,0.1131004,115940.0,115930.0,0.93104589]
[1758293430879,0.4510104,115940.0,115930.0,0.84482809]
[1758293431078,0.82485204,115940.0,115930.0,0.13603807]
[1758293431283,0.4873804,115940.0,115930.0,0.13603807]
[1758293431482,0.82485204,115940.0,115930.0,0.13603807]
[1758293431985,0.82485204,115940.0,115910.0,0.10841838]
[1758293432286,0.8441952,115920.0,115910.0,0.02113]
[1758293432478,1.18166684,115920.0,115910.0,0.02113]
[1758293432680,0.8441952,115920.0,115910.0,0.02113]
[1758293432879,1.18166684,115920.0,115910.0,0.02113]
[1758293433086,0.0862327,115910.0,115900.0,0.0129]
[1758293433384,1.69479434,115910.0,115900.0,0.03403]
[1758293433777,1.3708027,115910.0,115900.0,0.06335387]
[1758293434176,1.3708027,115910.0,115900.0,0.07625387]
[1758293434177,1.3573227,115910.0,115900.0,0.07625387]
[1758293434381,1.3718027,115910.0,115900.0,0.06535387]
[1758293434576,1.3583227,115910.0,115900.0,0.07825387]
[1758293434771,1.3623227,115910.0,115900.0,0.08525387]
[1758293436073,0.4749227,115910.0,115900.0,0.08525387]
[1758293436275,1.3618427,115910.0,115900.0,0.15438925]
[1758293437078,0.4749227,115910.0,115900.0,0.15438925]
[1758293437278,1.3750827,115910.0,115900.0,0.15438925]
[1758293437878,1.3740827,115910.0,115900.0,0.15438925]
[1758293439681,1.79340699,115910.0,115900.0,0.14148925]
[1758293439993,1.79340699,115910.0,115900.0,0.12035925]
[1758293440189,2.04340699,115910.0,115900.0,0.07813538]
[1758293440377,1.15772699,115910.0,115900.0,0.07813538]
[1758293440578,1.6218827,115910.0,115900.0,0.07813538]
[1758293440774,2.04120699,115910.0,115900.0,0.009]
[1758293441883,0.1140551,115880.0,115870.0,0.0001]
[1758293442083,0.1091525,115870.0,115860.0,0.1202999]
[1758293442286,1.3531925,115870.0,115860.0,0.07755101]
[1758293442485,1.3537525,115870.0,115860.0,0.07755101]
[1758293443185,1.3537525,115870.0,115860.0,0.25423152]
[1758293443585,1.3532325,115870.0,115860.0,0.14581314]
[1758293444289,0.4844325,115870.0,115860.0,0.11178314]
[1758293444487,0.1091599,115860.0,115850.0,0.02372364]
[1758293444689,1.78540419,115860.0,115850.0,0.02372364]
[1758293444893,1.3661199,115860.0,115850.0,0.04485364]
[1758293445391,1.3659999,115860.0,115850.0,0.02372364]
[1758293445580,0.4834399,115860.0,115850.0,0.04485364]
[1758293445781,1.3657599,115860.0,115850.0,0.04485364]
[1758293445991,1.78508419,115860.0,115850.0,0.02372364]
[1758293446594,2.03608419,115860.0,115850.0,0.02372364]
[1758293447090,2.03824419,115860.0,115850.0,0.02372364]
[1758293447291,0.7334399,115860.0,115850.0,0.02372364]
[1758293447494,2.03812419,115860.0,115850.0,0.02372364]
[1758293447795,2.04712419,115860.0,115850.0,0.02372364]
[1758293448096,0.7434399,115860.0,115850.0,0.02372364]
[1758293448392,1.3687999,115860.0,115850.0,0.02372364]
[1758293448596,1.79612419,115860.0,115850.0,0.02372364]
[1758293449094,1.3775599,115860.0,115850.0,0.02372364]
[1758293449397,1.79676419,115860.0,115850.0,0.02284364]
[1758293449692,1.79676419,115860.0,115850.0,0.01084364]
[1758293449883,1.3774399,115860.0,115850.0,0.01084364]
[1758293450083,1.79676419,115860.0,115850.0,0.01084364]
[1758293450283,1.78876419,115860.0,115850.0,0.01084364]
[1758293450487,0.4904399,115860.0,115850.0,0.03197364]
[1758293450697,1.3765999,115860.0,115850.0,0.04487364]
[1758293450992,1.3765999,115860.0,115850.0,0.03197364]
[1758293450993,1.79592419,115860.0,115850.0,0.03197364]
[1758293451396,1.3765999,115860.0,115850.0,0.03197364]
[1758293451693,1.3765999,115860.0,115850.0,0.01084364]
[1758293451993,1.79592419,115860.0,115850.0,0.01084364]
[1758293452195,1.79592419,115860.0,115850.0,0.03197364]
[1758293452694,0.4769599,115860.0,115850.0,0.38167094]
[1758293452995,1.3604799,115860.0,115850.0,0.38167094]
[1758293453192,0.39069,115860.0,115850.0,0.80099523]
[1758293453398,1.3601599,115860.0,115850.0,0.38167094]
[1758293453897,1.3601599,115860.0,115850.0,0.29539364]
[1758293454099,1.3601599,115860.0,115850.0,0.38167094]
[1758293454886,1.3601599,115860.0,115850.0,0.29539364]
[1758293455601,1.3601599,115860.0,115850.0,0.38167094]
[1758293456007,1.27389,115860.0,115850.0,0.38167094]
[1758293456199,0.4540699,115860.0,115850.0,0.80416745]
[1758293456399,0.0932699,115860.0,115850.0,0.80416745]
[1758293456699,0.0932699,115860.0,115850.0,0.38167094]
[1758293457000,0.1155399,115860.0,115850.0,0.71789015]
[1758293457307,0.0932699,115860.0,115850.0,0.80416745]
[1758293457502,0.007,115860.0,115850.0,0.80416745]
[1758293457900,0.007,115860.0,115850.0,1.16496745]
[1758293458202,0.007,115860.0,115850.0,2.05228745]
[1758293458394,0.007,115860.0,115850.0,1.16496745]
[1758293459305,0.006,115860.0,115850.0,1.16496745]
[1758293459606,0.006,115860.0,115850.0,2.05212745]
[1758293460201,0.006,115860.0,115850.0,0.74247094]
[1758293460408,0.1133799,115860.0,115850.0,0.49247094]
[1758293461209,0.1133799,115860.0,115850.0,0.91496745]
[1758293461593,0.1133799,115860.0,115850.0,0.49247094]
[1758293461997,0.1133799,115860.0,115850.0,0.91496745]
[1758293462604,0.1133799,115860.0,115850.0,0.46789015]
[1758293463000,0.4741799,115860.0,115850.0,0.04539364]
[1758293463910,0.4741799,115860.0,115850.0,0.13163094]
[1758293464704,0.4741799,115860.0,115850.0,0.04535364]
[1758293465505,0.3668,115860.0,115850.0,0.55412745]
[1758293465708,0.006,115860.0,115850.0,0.82441595]
[1758293465916,0.006,115860.0,115850.0,1.18521595]
[1758293466510,0.006,115860.0,115850.0,2.06729595]
[1758293467908,0.006,115860.0,115850.0,0.76271944]
[1758293468114,0.006,115860.0,115850.0,2.06693595]
[1758293468305,0.006,115860.0,115850.0,1.81693595]
[1758293469010,0.006,115860.0,115850.0,0.51271944]
[1758293469313,0.006,115860.0,115850.0,0.93521595]
[1758293469513,0.006,115860.0,115850.0,1.81913595]
[1758293469906,0.006,115860.0,115850.0,0.93521595]
[1758293470407,0.006,115860.0,115850.0,1.39639944]
[1758293470609,0.006,115860.0,115850.0,0.93521595]
[1758293470798,0.006,115860.0,115850.0,1.81861595]
[1758293471214,0.006,115860.0,115850.0,0.51271944]
[1758293471408,0.1133798,115860.0,115850.0,0.06564214]
[1758293471713,0.1133798,115860.0,115850.0,0.57441585]
[1758293472213,0.1133798,115860.0,115850.0,0.06564214]
[1758293472712,0.7241798,115860.0,115850.0,0.06564214]
[1758293473814,0.7376598,115860.0,115850.0,0.06564214]
[1758293474214,0.7241798,115860.0,115850.0,0.06564214]
[1758293474913,0.7241798,115860.0,115850.0,0.48813865]
[1758293475404,0.7241798,115860.0,115850.0,0.06564214]
[1758293475712,0.7241798,115860.0,115850.0,0.57441575]
[1758293476212,0.7241798,115860.0,115850.0,0.15191924]
[1758293476420,0.7241798,115860.0,115850.0,0.57441575]
[1758293477213,0.7241798,115860.0,115850.0,0.48813865]
[1758293477912,0.7231798,115860.0,115850.0,0.48813865]
[1758293478212,0.00328,115860.0,115850.0,1.18521575]
[1758293478617,0.00328,115860.0,115850.0,2.06897575]
[1758293478918,0.00328,115860.0,115850.0,2.17739413]
[1758293479113,0.00328,115860.0,115850.0,2.17731413]
[1758293479512,0.00328,115860.0,115850.0,0.87105762]
[1758293479712,0.02111,115860.0,115850.0,1.29355413]
[1758293480204,0.02111,115860.0,115850.0,1.04355413]
[1758293480398,0.02111,115870.0,115860.0,0.0862676]
[1758293480604,0.02111,115870.0,115860.0,0.65215249]
[1758293480802,0.4470588,115880.0,115860.0,0.65215249]
[1758293481018,0.4681688,115880.0,115870.0,0.03497]
[1758293481218,1.3502488,115880.0,115870.0,0.03497]
[1758293482411,0.4681688,115880.0,115870.0,0.45746651]
[1758293482711,1.3512488,115880.0,115870.0,0.45846651]
[1758293482910,1.3512488,115880.0,115870.0,0.10433659]
[1758293483816,1.3592488,115880.0,115870.0,0.10633659]
[1758293484117,1.3592488,115880.0,115870.0,0.5288331]
[1758293485816,0.4781688,115880.0,115870.0,0.6150953]
[1758293486021,0.01,115880.0,115870.0,0.6150953]
[1758293486520,0.01,115880.0,115870.0,0.72351368]
[1758293487013,0.01,115880.0,115870.0,0.6150953]
[1758293487623,0.01,115880.0,115870.0,0.19259879]
[1758293487814,0.01,115880.0,115870.0,0.6150953]
[1758293488121,0.0962548,115880.0,115870.0,0.6150953]
[1758293488818,0.1192348,115880.0,115870.0,0.19259879]
[1758293489018,0.1192348,115880.0,115870.0,0.10633659]
[1758293489215,0.4800348,115880.0,115870.0,0.10633659]
[1758293489524,0.4800348,115880.0,115870.0,0.21475497]
[1758293489813,0.89148,115880.0,115870.0,0.19259889]
[1758293490118,0.01,115880.0,115870.0,1.2258954]
[1758293490418,0.3608,115890.0,115880.0,0.1221948]
[1758293490607,1.24164,115900.0,115890.0,0.1221874]
[1758293490813,1.24164,115900.0,115890.0,0.54468391]
[1758293491016,1.24112,115900.0,115890.0,0.54468391]
[1758293491616,1.3503375,115910.0,115900.0,0.03594]
[1758293492311,0.4700175,115910.0,115900.0,0.03594]
[1758293492512,1.3498975,115910.0,115900.0,0.03594]
[1758293494023,1.23908,115910.0,115900.0,0.69565477]
[1758293494223,1.26398,115910.0,115900.0,0.69665477]
[1758293494418,0.90326,115910.0,115900.0,0.69665477]
[1758293494618,0.9894924,115910.0,115900.0,0.18791836]
[1758293495118,0.9944924,115910.0,115900.0,0.19091836]
[1758293495322,1.3542924,115910.0,115900.0,0.19191836]
[1758293495714,0.4750124,115910.0,115900.0,0.19691836]
[1758293495914,1.3520124,115910.0,115900.0,0.28315826]
[1758293496221,1.3520124,115910.0,115900.0,0.19691836]
[1758293496423,1.3520124,115910.0,115900.0,0.28315826]
[1758293497226,1.26578,115910.0,115900.0,0.28315826]
[1758293497413,0.005,115910.0,115900.0,0.70565477]
[1758293497613,0.005,115910.0,115900.0,0.95565477]
[1758293498020,0.005,115910.0,115900.0,1.2079585]
[1758293498522,0.005,115910.0,115900.0,1.29423605]
[1758293498715,1.3228852,115940.0,115900.0,1.53548322]
[1758293498921,0.0862178,115930.0,115920.0,0.65285671]
[1758293499322,0.0862178,115930.0,115920.0,0.65278722]
[1758293499521,1.3458653,115940.0,115930.0,0.03594]
[1758293499722,0.9620853,115940.0,115930.0,0.54465411]
[1758293499927,0.9660801,115940.0,115930.0,0.54465411]
[1758293500125,0.0906801,115940.0,115930.0,0.45843651]
[1758293500723,0.0906801,115940.0,115930.0,0.54465411]
[1758293501823,0.0866801,115940.0,115930.0,0.54465411]
[1758293502319,0.00047,115940.0,115930.0,0.54465411]
[1758293502513,0.00047,115940.0,115930.0,0.90545411]
[1758293502727,0.00347,115940.0,115930.0,0.91145411]
[1758293502927,0.00347,115940.0,115930.0,1.16145411]
[1758293503428,0.4744601,115940.0,115930.0,0.04294]
[1758293503931,0.0906801,115940.0,115930.0,0.55165411]
[1758293504429,0.00447,115940.0,115930.0,0.98155089]
[1758293504625,0.1136601,115940.0,115930.0,0.55905438]
[1758293504826,0.1136601,115940.0,115930.0,0.11203678]
[1758293505033,0.4744601,115940.0,115930.0,0.11203678]
[1758293505627,0.4878901,115940.0,115930.0,0.11203678]
[1758293506230,0.4744601,115940.0,115930.0,0.11203678]
[1758293508932,0.4744601,115940.0,115930.0,0.19825448]
[1758293508933,0.00447,115940.0,115930.0,0.19825448]
[1758293509131,0.36483,115940.0,115930.0,0.62075099]
[1758293509323,0.00403,115940.0,115930.0,0.19825448]
[1758293509632,0.1132202,115940.0,115930.0,0.62075099]
[1758293510132,0.02701,115940.0,115930.0,0.62075099]
[1758293510536,0.00403,115940.0,115930.0,0.62075099]
[1758293510832,0.02701,115940.0,115930.0,0.62075099]
[1758293511137,0.38781,115940.0,115930.0,0.62075099]
[1758293511339,0.02701,115940.0,115930.0,0.62075099]
[1758293511526,0.1132202,115940.0,115930.0,0.62075099]
[1758293512641,0.1132202,115940.0,115930.0,0.11203678]
[1758293513041,0.1132202,115940.0,115930.0,0.19825438]
[1758293513239,0.1132202,115940.0,115930.0,0.11203678]
[1758293513441,0.90954671,115940.0,115930.0,0.11203678]
[1758293513641,0.4870502,115940.0,115930.0,0.11203678]
[1758293513835,0.4740202,115940.0,115930.0,0.11203678]
[1758293515240,0.36483,115940.0,115930.0,0.62075079]
[1758293515535,0.00403,115940.0,115930.0,0.62075079]
[1758293515742,0.00403,115940.0,115930.0,0.61725354]
[1758293516243,0.00403,115940.0,115930.0,1.22805354]
[1758293517332,0.00403,115940.0,115930.0,0.86725354]
[1758293517941,0.0902401,115940.0,115930.0,0.44825428]
[1758293518246,0.0902401,115940.0,115930.0,0.86725354]
[1758293518550,0.00403,115940.0,115930.0,1.22805354]
[1758293519343,0.0902401,115940.0,115930.0,1.24839048]
[1758293519647,0.00403,115940.0,115930.0,1.24839048]
[1758293521140,0.00403,115940.0,115930.0,2.11515048]
[1758293521345,0.00403,115940.0,115930.0,1.24839048]
[1758293521553,0.00403,115940.0,115930.0,1.69555122]
[1758293521739,0.00403,115940.0,115930.0,0.82939122]
[1758293522051,0.00403,115940.0,115930.0,1.22805354]
[1758293524845,0.00403,115940.0,115930.0,2.09373354]
[1758293525049,0.0902401,115940.0,115930.0,1.22805354]
[1758293525346,0.00403,115940.0,115930.0,2.09373354]
[1758293525549,0.00403,115940.0,115930.0,2.11365106]
[1758293526249,0.00403,115940.0,115930.0,2.11341106]
[1758293529044,0.0902402,115940.0,115930.0,2.11341106]
[1758293529652,0.00403,115940.0,115930.0,2.11341106]
[1758293529952,0.004,115940.0,115930.0,2.11341106]
[1758293530252,0.0902102,115940.0,115930.0,1.24797106]
[1758293530446,0.0902102,115940.0,115930.0,2.11153106]
[1758293531152,0.004,115940.0,115930.0,2.11153106]
[1758293531342,0.004,115940.0,115930.0,1.24797106]
[1758293531547,0.4721802,115940.0,115930.0,0.1319543]
[1758293532852,0.38597,115940.0,115930.0,0.1319543]
[1758293533354,0.38597,115940.0,115930.0,0.24008291]
[1758293533747,0.38597,115940.0,115930.0,0.32630041]
[1758293534055,0.004,115940.0,115930.0,1.10609967]
[1758293534352,0.004,115940.0,115930.0,0.74529967]
[1758293534651,0.02517,115940.0,115930.0,0.74529967]
[1758293536852,0.02517,115940.0,115930.0,1.10609967]
[1758293537256,0.38197,115950.0,115940.0,0.09932]
[1758293537449,0.38197,115950.0,115940.0,1.72951083]
[1758293537649,0.4681726,115950.0,115940.0,1.72951083]
[1758293538250,0.02117,115950.0,115940.0,1.72951083]
[1758293538655,0.02217,115950.0,115940.0,1.73051083]
[1758293538856,0.02517,115950.0,115940.0,1.73451083]
[1758293539155,0.02477,115950.0,115940.0,1.73451083]
[1758293539855,0.4717726,115950.0,115940.0,2.07195715]
[1758293540555,0.4717726,115950.0,115940.0,1.96335632]
[1758293540753,0.1109726,115950.0,115940.0,1.96335632]
[1758293541356,0.1109726,115950.0,115940.0,1.96335642]
[1758293542651,0.02477,115950.0,115940.0,1.96335642]
[1758293542853,0.004,115950.0,115940.0,2.91160274]
[1758293543053,0.004,115950.0,115940.0,2.57415642]
[1758293543557,0.4510026,115950.0,115940.0,1.5397]
[1758293543754,0.4510026,115950.0,115940.0,1.87714632]
[1758293544059,1.05163892,115950.0,115940.0,1.5407]